[Event "Budapest Spring Festival 2019"]
[Site "Budapest"]
[Date "2019.04.12"]
[Round "4.7"]
[White "Santos Latasa, Jaime"]
[Black "Ashwath, R.."]
[Result "1-0"]
[ECO "C50"]
[WhiteElo "2585"]
[BlackElo "2388"]
[Annotator "ChessBase"]
[PlyCount "63"]
[EventDate "2019.04.09"]
[EventType "swiss"]
[EventCountry "HUN"]
[SourceTitle "playchess.com"]
[Source "ChessBase"]
[SourceQuality "1"]
[TimeControl "40/5400+30:1800+30"]

1. e4 {[%emt 0:00:04]} e5 {[%emt 0:05:17]} 2. Nf3 {[%emt 0:00:06]} Nc6 {[%emt 0:00:03]} 3. Bc4 {[%emt 0:00:09]} Bc5 {[%emt 0:01:23]} 4. O-O {[%emt 0:00:11]} d6 {[%emt 0:04:13]} 5. c3 {[%emt 0:01:25]} Nf6 {[%emt 0:01:51]} 6. d3 {[%emt 0:03:27]} O-O {[%emt 0:02:46]} 7. h3 {[%emt 0:00:39]} Ne7 {[%emt 0:06:27]} 8. Re1 {[%emt 0:02:06]} Ng6 {[%emt 0:02:15]} 9. d4 {[%emt 0:00:54]} Bb6 {[%emt 0:01:53]} 10. Bf1 {[%emt 0:04:55]} c6 {[%emt 0:05:34]} 11. Nbd2 {[%emt 0:02:48]} Re8 {[%emt 0:02:46]} 12. Qc2 {[%emt 0:08:18]} Bc7 {[%emt 0:17:51]} 13. dxe5 {[%emt 0:02:52]} dxe5 {[%emt 0:05:05]} 14. Nc4 {[%emt 0:00:24]} Nh5 {[%emt 0:05:38]} 15. Bg5 {[%emt 0:01:13]} f6 {[%emt 0:00:50]} 16. Rad1 {[%emt 0:00:21]} Qe7 {[%emt 0:01:09]} 17. Bc1 {[%emt 0:00:17]} b5 {[%emt 0:02:37]} 18. Ne3 {[%emt 0:00:37]} Nhf4 {[%emt 0:01:35]} 19. Nf5 {[%emt 0:00:36]} Qf7 {[%emt 0:05:22]} 20. g3 {[%emt 0:08:27]} Ne6 {[%emt 0:04:04]} 21. Be3 {[%emt 0:00:35]} Qf8 {[%emt 0:03:47]} 22. c4 {[%emt 0:05:36]} b4 {[%emt 0:03:17]} 23. c5 {[%emt 0:00:33]} a5 {[%emt 0:02:07]} 24. Nd2 {[%emt 0:03:10]} Rd8 {[%emt 0:05:29]} 25. Nc4 {[%emt 0:04:03]} Ba6 {[%emt 0:05:03]} 26. Ncd6 {[%emt 0:01:52]} Bxf1 {[%emt 0:00:15]} 27. Qb3 {[%emt 0:01:11]} Re8 {[%emt 0:02:20]} 28. Nxe8 {[%emt 0:00:55]} Qxe8 {[%emt 0:00:38]} 29. Rxf1 {[%emt 0:00:07]} Ngf8 {[%emt 0:00:23]} 30. Rd2 {[%emt 0:03:06]} g6 {[%emt 0:00:21]} 31. Nd6 {[%emt 0:00:16]} Qe7 {[%emt 0:00:47]} 32. Rfd1 {[%emt 0:00:38]} 1-0

[Event "Budapest Spring Festival 2019"]
[Site "Budapest"]
[Date "2019.04.12"]
[Round "4.8"]
[White "Raja Harshit"]
[Black "Mikhalevski, Victor"]
[Result "0-1"]
[ECO "C60"]
[WhiteElo "2432"]
[BlackElo "2580"]
[Annotator "ChessBase"]
[PlyCount "86"]
[EventDate "2019.04.09"]
[EventType "swiss"]
[EventCountry "HUN"]
[SourceTitle "playchess.com"]
[Source "ChessBase"]
[SourceQuality "1"]
[TimeControl "40/5400+30:1800+30"]

1. e4 {[%emt 0:00:18]} e5 {[%emt 0:00:15]} 2. Nf3 {[%emt 0:00:22]} Nc6 {[%emt 0:00:08]} 3. Bb5 {[%emt 0:00:20]} g6 {[%emt 0:00:33]} 4. O-O {[%emt 0:00:30]} Bg7 {[%emt 0:00:10]} 5. c3 {[%emt 0:00:16]} a6 {[%emt 0:00:31]} 6. Ba4 {[%emt 0:00:44]} Nge7 {[%emt 0:00:34]} 7. d4 {[%emt 0:00:17]} exd4 {[%emt 0:00:10]} 8. cxd4 {[%emt 0:00:06]} b5 {[%emt 0:00:09]} 9. Bb3 {[%emt 0:00:10]} O-O {[%emt 0:00:28]} 10. d5 {[%emt 0:00:53]} Na5 {[%emt 0:00:14]} 11. Bd2 {[%emt 0:00:07]} Nxb3 {[%emt 0:04:51]} 12. Qxb3 {[%emt 0:00:11]} c5 {[%emt 0:00:45]} 13. Bc3 {[%emt 0:01:13]} d6 {[%emt 0:01:17]} 14. Bxg7 {[%emt 0:00:14]} Kxg7 {[%emt 0:00:04]} 15. Nbd2 {[%emt 0:00:12]} f6 {[%emt 0:11:35]} 16. Qc3 {[%emt 0:00:08]} a5 {[%emt 0:05:54]} 17. b3 {[%emt 0:00:08]} h6 {[%emt 0:16:48]} 18. a3 {[%emt 0:16:31]} b4 {[%emt 0:02:17]} 19. Qc2 {[%emt 0:10:58]} Ba6 {[%emt 0:07:01]} 20. Rfe1 {[%emt 0:00:26]} Qd7 {[%emt 0:04:30]} 21. Ra2 {[%emt 0:08:20]} Ra7 {[%emt 0:04:48]} 22. h3 {[%emt 0:10:14]} g5 {[%emt 0:02:49]} 23. Rea1 {[%emt 0:06:04]} Rfa8 {[%emt 0:00:50]} 24. Nh2 {[%emt 0:05:42]} Ng6 {[%emt 0:03:14]} 25. Ng4 {[%emt 0:01:23]} Nf4 {[%emt 0:01:57]} 26. axb4 {[%emt 0:12:35]} Ne2+ {[%emt 0:01:18]} 27. Kh2 {[%emt 0:02:50]} Nd4 {[%emt 0:02:41]} 28. Qb2 {[%emt 0:02:22]} axb4 {[%emt 0:02:26]} 29. Nf3 {[%emt 0:06:03]} Nxf3+ {[%emt 0:02:58]} 30. gxf3 {[%emt 0:00:03]} Qe7 {[%emt 0:00:33]} 31. h4 {[%emt 0:01:18]} Kg6 {[%emt 0:07:17]} 32. h5+ {[%emt 0:03:58]} Kxh5 {[%emt 0:00:44]} 33. Qxf6 {[%emt 0:00:06]} Qxf6 {[%emt 0:00:13]} 34. Nxf6+ {[%emt 0:00:02]} Kg6 {[%emt 0:00:08]} 35. Ng4 {[%emt 0:01:11]} h5 {[%emt 0:05:22]} 36. Ne3 {[%emt 0:00:04]} Kf6 {[%emt 0:00:05]} 37. Nf5 {[%emt 0:04:19]} Ke5 {[%emt 0:00:29]} 38. Kg3 {[%emt 0:00:28]} c4 {[%emt 0:03:05]} 39. bxc4 {[%emt 0:00:51]} b3 {[%emt 0:00:04]} 40. Ra4 {[%emt 0:00:00]} Bc8 {[%emt 0:00:00]} 41. Rxa7 {[%emt 0:07:15]} Rxa7 {[%emt 0:01:33]} 42. Rb1 {[%emt 0:03:47]} Bxf5 {[%emt 0:00:34]} 43. exf5 {[%emt 0:02:43]} Rb7 {[%emt 0:00:07]} 0-1

[Event "Budapest Spring Festival 2019"]
[Site "Budapest"]
[Date "2019.04.12"]
[Round "4.9"]
[White "Savchenko, Boris"]
[Black "Gschnitzer, Adrian"]
[Result "1-0"]
[ECO "B92"]
[WhiteElo "2575"]
[BlackElo "2380"]
[Annotator "ChessBase"]
[PlyCount "79"]
[EventDate "2019.04.09"]
[EventType "swiss"]
[EventCountry "HUN"]
[SourceTitle "playchess.com"]
[Source "ChessBase"]
[SourceQuality "1"]
[TimeControl "40/5400+30:1800+30"]

1. e4 {[%emt 0:05:42]} c5 {[%emt 0:00:11]} 2. Nf3 {[%emt 0:04:29]} d6 {[%emt 0:00:24]} 3. d4 {[%emt 0:00:49]} cxd4 {[%emt 0:00:09]} 4. Nxd4 {[%emt 0:03:46]} Nf6 {[%emt 0:00:10]} 5. Nc3 {[%emt 0:00:11]} a6 {[%emt 0:00:15]} 6. Be3 {[%emt 0:00:39]} Ng4 {[%emt 0:00:20]} 7. Bc1 {[%emt 0:00:07]} Nf6 {[%emt 0:00:08]} 8. Be2 {[%emt 0:00:16]} e5 {[%emt 0:01:54]} 9. Nb3 {[%emt 0:08:10]} Be7 {[%emt 0:03:53]} 10. O-O {[%emt 0:04:50]} O-O {[%emt 0:01:04]} 11. a4 {[%emt 0:14:58]} Be6 {[%emt 0:04:18]} 12. Bf3 {[%emt 0:00:44]} Nbd7 {[%emt 0:05:09]} 13. Re1 {[%emt 0:03:30]} Nb6 {[%emt 0:05:40]} 14. a5 {[%emt 0:15:03]} Nc4 {[%emt 0:00:44]} 15. Nd5 {[%emt 0:06:41]} Rc8 {[%emt 0:01:40]} 16. Ra4 {[%emt 0:03:27]} Nxd5 {[%emt 0:03:26]} 17. exd5 {[%emt 0:00:13]} Bd7 {[%emt 0:00:11]} 18. Ra2 {[%emt 0:04:53]} Bg5 {[%emt 0:04:22]} 19. Be2 {[%emt 0:09:42]} Bxc1 {[%emt 0:03:46]} 20. Qxc1 {[%emt 0:00:06]} Bb5 {[%emt 0:00:15]} 21. Qa1 {[%emt 0:03:01]} Qg5 {[%emt 0:10:09]} 22. Qd1 {[%emt 0:00:43]} e4 {[%emt 0:02:44]} 23. g3 {[%emt 0:06:52]} Rfe8 {[%emt 0:03:22]} 24. c3 {[%emt 0:01:49]} Ne5 {[%emt 0:06:27]} 25. Bxb5 {[%emt 0:00:20]} Nf3+ {[%emt 0:01:25]} 26. Qxf3 {[%emt 0:00:07]} exf3 {[%emt 0:00:13]} 27. Bxe8 {[%emt 0:00:15]} Qxd5 {[%emt 0:04:24]} 28. Bd7 {[%emt 0:00:29]} Rd8 {[%emt 0:01:49]} 29. Ra3 {[%emt 0:01:48]} h5 {[%emt 0:00:21]} 30. Bh3 {[%emt 0:00:30]} g5 {[%emt 0:01:25]} 31. Nd4 {[%emt 0:00:22]} g4 {[%emt 0:00:43]} 32. Bf1 {[%emt 0:00:06]} h4 {[%emt 0:03:01]} 33. Bd3 {[%emt 0:00:29]} hxg3 {[%emt 0:01:10]} 34. hxg3 {[%emt 0:00:15]} Qg5 {[%emt 0:02:39]} 35. Re3 {[%emt 0:00:49]} Kg7 {[%emt 0:01:02]} 36. Ra4 {[%emt 0:00:22]} Rh8 {[%emt 0:10:25]} 37. Nf5+ {[%emt 0:00:19]} Kf6 {[%emt 0:00:13]} 38. Rf4 {[%emt 0:00:19]} Qh5 {[%emt 0:00:07]} 39. Nxd6+ {[%emt 0:00:35]} Kg7 {[%emt 0:00:22]} 40. Rxf7+ {[%emt 0:00:00]} 1-0

[Event "Budapest Spring Festival 2019"]
[Site "Budapest"]
[Date "2019.04.12"]
[Round "4.10"]
[White "Pasztor, Balazs"]
[Black "Stupak, Kirill"]
[Result "0-1"]
[ECO "B12"]
[WhiteElo "2139"]
[BlackElo "2547"]
[Annotator "ChessBase"]
[PlyCount "134"]
[EventDate "2019.04.09"]
[EventType "swiss"]
[EventCountry "HUN"]
[SourceTitle "playchess.com"]
[Source "ChessBase"]
[SourceQuality "1"]
[TimeControl "40/5400+30:1800+30"]

1. e4 {[%emt 0:00:07]} c6 {[%emt 0:00:03]} 2. d4 {[%emt 0:00:29]} d5 {[%emt 0:00:02]} 3. e5 {[%emt 0:00:32]} c5 {[%emt 0:00:07]} 4. Nf3 {[%emt 0:02:16]} Nc6 {[%emt 0:01:49]} 5. dxc5 {[%emt 0:01:09]} Bg4 {[%emt 0:00:17]} 6. c3 {[%emt 0:01:30]} a6 {[%emt 0:00:33]} 7. Be2 {[%emt 0:10:45]} e6 {[%emt 0:01:01]} 8. Be3 {[%emt 0:07:03]} Bxf3 {[%emt 0:14:23]} 9. Bxf3 {[%emt 0:01:39]} Nxe5 {[%emt 0:00:08]} 10. O-O {[%emt 0:07:01]} Nf6 {[%emt 0:06:29]} 11. Nd2 {[%emt 0:06:00]} Be7 {[%emt 0:00:37]} 12. Be2 {[%emt 0:06:20]} O-O {[%emt 0:00:56]} 13. b4 {[%emt 0:10:25]} Nc6 {[%emt 0:04:22]} 14. Nf3 {[%emt 0:06:01]} Ne4 {[%emt 0:02:03]} 15. Qb3 {[%emt 0:05:26]} Bf6 {[%emt 0:00:08]} 16. Rac1 {[%emt 0:01:39]} Qc7 {[%emt 0:02:06]} 17. Bd3 {[%emt 0:03:04]} Nxc3 {[%emt 0:11:21]} 18. Rxc3 {[%emt 0:02:48]} d4 {[%emt 0:01:48]} 19. Rc4 {[%emt 0:05:07]} dxe3 {[%emt 0:01:47]} 20. fxe3 {[%emt 0:00:20]} Rad8 {[%emt 0:03:21]} 21. Be4 {[%emt 0:05:02]} Rd7 {[%emt 0:04:41]} 22. Qc2 {[%emt 0:03:57]} h6 {[%emt 0:03:03]} 23. Bxc6 {[%emt 0:03:32]} Qxc6 {[%emt 0:00:58]} 24. e4 {[%emt 0:01:53]} Qc7 {[%emt 0:07:39]} 25. c6 {[%emt 0:01:20]} Qb6+ {[%emt 0:03:37]} 26. Kh1 {[%emt 0:00:53]} bxc6 {[%emt 0:02:06]} 27. e5 {[%emt 0:00:51]} Be7 {[%emt 0:00:59]} 28. Rxc6 {[%emt 0:01:01]} Qxb4 {[%emt 0:01:01]} 29. Rb1 {[%emt 0:00:26]} Qa5 {[%emt 0:02:32]} 30. Qe2 {[%emt 0:01:27]} Ra8 {[%emt 0:01:27]} 31. h3 {[%emt 0:01:35]} Bg5 {[%emt 0:05:16]} 32. Rbb6 {[%emt 0:01:12]} Bf4 {[%emt 0:05:17]} 33. Rxa6 {[%emt 0:00:56]} Rxa6 {[%emt 0:00:15]} 34. Rxa6 {[%emt 0:01:07]} Qd5 {[%emt 0:00:19]} 35. Rd6 {[%emt 0:00:44]} Rxd6 {[%emt 0:00:59]} 36. exd6 {[%emt 0:00:07]} Qxd6 {[%emt 0:00:06]} 37. a4 {[%emt 0:00:44]} Qa3 {[%emt 0:01:14]} 38. Qd1 {[%emt 0:00:39]} e5 {[%emt 0:00:36]} 39. Qe1 {[%emt 0:00:34]} f6 {[%emt 0:08:01]} 40. a5 {[%emt 0:00:00]} Qd3 {[%emt 0:00:00]} 41. Ng1 {[%emt 0:10:17]} f5 {[%emt 0:06:25]} 42. Qf2 {[%emt 0:07:28]} Be3 {[%emt 0:17:22]} 43. Qe2 {[%emt 0:02:16]} Qa3 {[%emt 0:08:09]} 44. Qc4+ {[%emt 0:01:29]} Kh7 {[%emt 0:00:01]} 45. Qf1 {[%emt 0:03:28]} Bf4 {[%emt 0:02:40]} 46. Ne2 {[%emt 0:04:03]} Qd3 {[%emt 0:00:53]} 47. Qf3 {[%emt 0:01:22]} Qb1+ {[%emt 0:03:50]} 48. Ng1 {[%emt 0:00:14]} Qc1 {[%emt 0:00:39]} 49. g3 {[%emt 0:03:02]} Be3 {[%emt 0:00:01]} 50. Qg2 {[%emt 0:00:16]} Qa1 {[%emt 0:00:58]} 51. g4 {[%emt 0:01:44]} Bxg1 {[%emt 0:00:30]} 52. Qxg1 {[%emt 0:00:12]} Qxa5 {[%emt 0:00:02]} 53. gxf5 {[%emt 0:00:50]} Qd5+ {[%emt 0:00:59]} 54. Kh2 {[%emt 0:00:58]} Qd2+ {[%emt 0:00:01]} 55. Kh1 {[%emt 0:00:19]} Qd5+ {[%emt 0:00:58]} 56. Kh2 {[%emt 0:00:13]} Qd2+ {[%emt 0:00:02]} 57. Kh1 {[%emt 0:00:05]} Qg5 {[%emt 0:00:06]} 58. Qf1 {[%emt 0:01:15]} Qg3 {[%emt 0:01:18]} 59. f6 {[%emt 0:01:30]} gxf6 {[%emt 0:00:01]} 60. Qf5+ {[%emt 0:00:20]} Kg7 {[%emt 0:01:03]} 61. Qd7+ {[%emt 0:00:29]} Kg6 {[%emt 0:00:01]} 62. Qe8+ {[%emt 0:00:08]} Kg7 {[%emt 0:00:21]} 63. Qd7+ {[%emt 0:00:14]} Kg6 {[%emt 0:00:03]} 64. Qe8+ {[%emt 0:01:32]} Kg5 {[%emt 0:00:01]} 65. Qe6 {[%emt 0:00:28]} Qf3+ {[%emt 0:00:23]} 66. Kh2 {[%emt 0:00:18]} Kh4 {[%emt 0:00:09]} 67. Qc8 {[%emt 0:00:41]} Qg3+ {[%emt 0:00:02]} 0-1

[Event "Budapest Spring Festival 2019"]
[Site "Budapest"]
[Date "2019.04.12"]
[Round "4.11"]
[White "Krzyzanowski, Marcin"]
[Black "Bashirli, Nail"]
[Result "1-0"]
[ECO "B23"]
[WhiteElo "2509"]
[BlackElo "2333"]
[Annotator "ChessBase"]
[PlyCount "93"]
[EventDate "2019.04.09"]
[EventType "swiss"]
[EventCountry "HUN"]
[SourceTitle "playchess.com"]
[Source "ChessBase"]
[SourceQuality "1"]
[TimeControl "40/5400+30:1800+30"]

1. e4 {[%emt 0:00:03]} c5 {[%emt 0:08:26]} 2. Nc3 {[%emt 0:00:17]} d6 {[%emt 0:00:10]} 3. d4 {[%emt 0:00:05]} cxd4 {[%emt 0:00:20]} 4. Qxd4 {[%emt 0:00:04]} Nc6 {[%emt 0:00:15]} 5. Qd2 {[%emt 0:00:03]} Nf6 {[%emt 0:00:23]} 6. b3 {[%emt 0:00:06]} e6 {[%emt 0:00:02]} 7. Bb2 {[%emt 0:00:05]} a6 {[%emt 0:00:11]} 8. O-O-O {[%emt 0:00:07]} b5 {[%emt 0:00:05]} 9. f3 {[%emt 0:00:04]} Be7 {[%emt 0:00:44]} 10. Kb1 {[%emt 0:00:18]} Bb7 {[%emt 0:02:58]} 11. g4 {[%emt 0:01:49]} Qc7 {[%emt 0:10:49]} 12. g5 {[%emt 0:04:51]} Nd7 {[%emt 0:01:27]} 13. h4 {[%emt 0:00:11]} O-O-O 14. Bh3 {[%emt 0:07:10]} Kb8 {[%emt 0:18:15]} 15. Nge2 {[%emt 0:03:29]} b4 {[%emt 0:03:35]} 16. Na4 {[%emt 0:23:31]} Nc5 {[%emt 0:02:45]} 17. Nxc5 {[%emt 0:02:02]} dxc5 {[%emt 0:00:03]} 18. Qe3 {[%emt 0:00:05]} e5 {[%emt 0:00:48]} 19. f4 {[%emt 0:03:04]} Bd6 {[%emt 0:04:04]} 20. fxe5 {[%emt 0:05:45]} Nxe5 {[%emt 0:02:00]} 21. Rhf1 {[%emt 0:04:42]} Rhe8 {[%emt 0:21:24]} 22. Nf4 {[%emt 0:04:11]} c4 {[%emt 0:07:59]} 23. Nd5 {[%emt 0:04:45]} Qa5 {[%emt 0:12:00]} 24. h5 {[%emt 0:19:43]} c3 {[%emt 0:00:57]} 25. Bc1 {[%emt 0:00:04]} Bc5 {[%emt 0:02:08]} 26. Qe2 {[%emt 0:01:50]} Ka7 {[%emt 0:00:25]} 27. h6 {[%emt 0:01:42]} gxh6 {[%emt 0:00:24]} 28. gxh6 {[%emt 0:00:02]} Nc6 {[%emt 0:00:50]} 29. Rxf7 {[%emt 0:03:24]} Nd4 {[%emt 0:00:17]} 30. Qg2 {[%emt 0:05:11]} Nb5 {[%emt 0:00:03]} 31. a4 {[%emt 0:01:37]} bxa3 {[%emt 0:00:29]} 32. Ka2 {[%emt 0:00:22]} Nd6 {[%emt 0:01:00]} 33. Rxh7 {[%emt 0:00:57]} Nxe4 {[%emt 0:00:37]} 34. Bd7 {[%emt 0:00:39]} Nf6 {[%emt 0:00:34]} 35. Bxe8 {[%emt 0:03:14]} Nxh7 {[%emt 0:00:04]} 36. Bf7 {[%emt 0:00:36]} Qb5 {[%emt 0:00:56]} 37. Qg6 {[%emt 0:01:27]} Nf8 {[%emt 0:00:16]} 38. Nxc3 {[%emt 0:00:43]} Qb4 {[%emt 0:00:38]} 39. Qf5 {[%emt 0:00:36]} Rc8 {[%emt 0:00:24]} 40. Rd3 {[%emt 0:00:00]} Bd4 {[%emt 0:00:00]} 41. Bxa3 {[%emt 0:04:31]} Qb6 {[%emt 0:05:47]} 42. Na4 {[%emt 0:07:47]} Rxc2+ {[%emt 0:01:35]} 43. Kb1 {[%emt 0:00:04]} Rf2 {[%emt 0:00:39]} 44. Qxf2 {[%emt 0:03:46]} Bxf2 {[%emt 0:01:03]} 45. Nxb6 {[%emt 0:00:08]} Be4 {[%emt 0:00:02]} 46. Kc2 {[%emt 0:02:41]} Nh7 {[%emt 0:00:37]} 47. Nc8+ {[%emt 0:00:24]} 1-0

[Event "Budapest Spring Festival 2019"]
[Site "Budapest"]
[Date "2019.04.12"]
[Round "4.14"]
[White "Kayonde, Andrew"]
[Black "Hakobyan, Aram"]
[Result "1/2-1/2"]
[ECO "A40"]
[WhiteElo "2394"]
[BlackElo "2554"]
[Annotator "ChessBase"]
[PlyCount "49"]
[EventDate "2019.04.09"]
[EventType "swiss"]
[EventCountry "HUN"]
[SourceTitle "playchess.com"]
[Source "ChessBase"]
[SourceQuality "1"]
[TimeControl "40/5400+30:1800+30"]

1. d4 {[%emt 0:05:07]} e6 {[%emt 0:00:21]} 2. c4 {[%emt 0:00:32]} b6 {[%emt 0:00:43]} 3. e4 {[%emt 0:00:29]} Bb7 {[%emt 0:00:16]} 4. Bd3 {[%emt 0:00:18]} Nc6 {[%emt 0:00:16]} 5. Ne2 {[%emt 0:00:17]} g6 {[%emt 0:00:55]} 6. Nbc3 {[%emt 0:02:00]} Bg7 {[%emt 0:00:08]} 7. Be3 {[%emt 0:00:59]} Nge7 {[%emt 0:00:07]} 8. Qd2 {[%emt 0:03:54]} d5 {[%emt 0:00:33]} 9. cxd5 {[%emt 0:01:08]} exd5 {[%emt 0:00:09]} 10. e5 {[%emt 0:00:58]} f6 11. exf6 {[%emt 0:16:39]} Bxf6 {[%emt 0:02:06]} 12. h4 {[%emt 0:00:21]} Qd7 {[%emt 0:05:04]} 13. h5 {[%emt 0:07:07]} O-O-O {[%emt 0:07:38]} 14. hxg6 {[%emt 0:02:17]} hxg6 {[%emt 0:03:08]} 15. O-O-O {[%emt 0:00:09]} Rxh1 {[%emt 0:13:45]} 16. Rxh1 {[%emt 0:00:09]} Nf5 {[%emt 0:00:10]} 17. Bg5 {[%emt 0:06:29]} Rh8 {[%emt 0:09:05]} 18. Rxh8+ {[%emt 0:10:23]} Bxh8 {[%emt 0:02:59]} 19. Qf4 {[%emt 0:01:22]} Bxd4 {[%emt 0:27:46]} 20. Nxd4 {[%emt 0:07:38]} Ncxd4 {[%emt 0:01:14]} 21. Qe5 {[%emt 0:02:22]} Ne6 {[%emt 0:13:23]} 22. Qh8+ {[%emt 0:02:17]} Nd8 {[%emt 0:00:02]} 23. Ne2 {[%emt 0:07:53]} d4 {[%emt 0:07:37]} 24. Nf4 {[%emt 0:01:09]} Nd6 {[%emt 0:00:30]} 25. Bxg6 {[%emt 0:14:31]} 1/2-1/2

[Event "Budapest Spring Festival 2019"]
[Site "Budapest"]
[Date "2019.04.12"]
[Round "4.15"]
[White "Horvath, Adam"]
[Black "Popovics, Adam"]
[Result "1-0"]
[ECO "C67"]
[WhiteElo "2533"]
[BlackElo "2375"]
[Annotator "ChessBase"]
[PlyCount "27"]
[EventDate "2019.04.09"]
[EventType "swiss"]
[EventCountry "HUN"]
[SourceTitle "playchess.com"]
[Source "ChessBase"]
[SourceQuality "1"]
[TimeControl "40/5400+30:1800+30"]

1. e4 {[%emt 0:03:37]} e5 {[%emt 0:00:10]} 2. Nf3 {[%emt 0:00:07]} Nc6 {[%emt 0:00:07]} 3. Bb5 {[%emt 0:00:14]} Nf6 {[%emt 0:00:14]} 4. O-O {[%emt 0:07:46]} Nxe4 {[%emt 0:00:05]} 5. d4 {[%emt 0:00:03]} Nd6 {[%emt 0:00:10]} 6. dxe5 {[%emt 0:00:04]} Nxb5 {[%emt 0:00:06]} 7. a4 {[%emt 0:00:05]} Nxe5 {[%emt 0:00:25]} 8. Nxe5 {[%emt 0:14:30]} Nd6 {[%emt 0:00:05]} 9. Re1 {[%emt 0:08:44]} Be7 {[%emt 0:00:23]} 10. Bg5 {[%emt 0:00:04]} Nf5 {[%emt 0:00:06]} 11. Nxf7 {[%emt 0:00:11]} Kxf7 {[%emt 0:00:06]} 12. Qd5+ {[%emt 0:00:05]} Kg6 {[%emt 0:00:07]} 13. g4 {[%emt 0:00:05]} Rf8 {[%emt 0:23:02]} 14. Bxe7 {[%emt 0:07:58]} 1-0

[Event "Budapest Spring Festival 2019"]
[Site "Budapest"]
[Date "2019.04.12"]
[Round "4.16"]
[White "Mehar, Chinna Reddy C.H."]
[Black "Gonda, Laszlo"]
[Result "1/2-1/2"]
[ECO "A45"]
[WhiteElo "2348"]
[BlackElo "2527"]
[Annotator "ChessBase"]
[PlyCount "64"]
[EventDate "2019.04.09"]
[EventType "swiss"]
[EventCountry "HUN"]
[SourceTitle "playchess.com"]
[Source "ChessBase"]
[SourceQuality "1"]
[TimeControl "40/5400+30:1800+30"]

1. d4 {[%emt 0:00:48]} Nf6 {[%emt 0:01:48]} 2. Bf4 {[%emt 0:00:16]} b6 {[%emt 0:00:10]} 3. e3 {[%emt 0:00:30]} Bb7 {[%emt 0:00:06]} 4. Nf3 {[%emt 0:00:16]} Nh5 {[%emt 0:01:56]} 5. Bg3 {[%emt 0:02:54]} Nxg3 {[%emt 0:00:39]} 6. hxg3 {[%emt 0:00:07]} g6 {[%emt 0:00:04]} 7. Bd3 {[%emt 0:00:19]} Bg7 {[%emt 0:00:19]} 8. Nbd2 {[%emt 0:00:58]} d6 {[%emt 0:09:42]} 9. Qe2 {[%emt 0:00:43]} Nd7 {[%emt 0:13:02]} 10. e4 {[%emt 0:10:16]} e5 {[%emt 0:03:19]} 11. d5 {[%emt 0:01:07]} a6 {[%emt 0:13:02]} 12. O-O-O {[%emt 0:03:41]} b5 {[%emt 0:02:31]} 13. Nb3 {[%emt 0:01:38]} c5 {[%emt 0:05:53]} 14. c4 {[%emt 0:04:22]} b4 {[%emt 0:05:24]} 15. Kb1 {[%emt 0:01:41]} a5 {[%emt 0:00:07]} 16. Nfd2 {[%emt 0:01:19]} a4 {[%emt 0:04:02]} 17. Nc1 {[%emt 0:00:17]} a3 {[%emt 0:02:12]} 18. b3 {[%emt 0:00:15]} Nf6 {[%emt 0:04:35]} 19. Bc2 {[%emt 0:00:39]} Bc8 {[%emt 0:03:08]} 20. Nd3 {[%emt 0:02:34]} Qe7 {[%emt 0:00:48]} 21. f3 {[%emt 0:01:44]} h5 {[%emt 0:07:05]} 22. Nf1 {[%emt 0:01:58]} Bh6 {[%emt 0:01:50]} 23. Nf2 {[%emt 0:01:20]} Bd7 {[%emt 0:02:51]} 24. Nd3 {[%emt 0:01:12]} Kf8 {[%emt 0:00:28]} 25. Nd2 {[%emt 0:02:35]} Kg7 {[%emt 0:02:10]} 26. Rdf1 {[%emt 0:00:20]} Rae8 {[%emt 0:01:35]} 27. Re1 {[%emt 0:01:09]} Kg8 {[%emt 0:02:56]} 28. Rhf1 {[%emt 0:01:16]} Rh7 {[%emt 0:03:39]} 29. Rh1 {[%emt 0:00:57]} Qf8 {[%emt 0:02:11]} 30. Rhf1 {[%emt 0:01:14]} Qe7 {[%emt 0:00:36]} 31. Rh1 {[%emt 0:00:06]} Bg7 {[%emt 0:01:13]} 32. Nf2 {[%emt 0:00:48]} Bh6 {[%emt 0:01:40]} 1/2-1/2

[Event "Budapest Spring Festival 2019"]
[Site "Budapest"]
[Date "2019.04.12"]
[Round "4.17"]
[White "Shyam, Sundar M."]
[Black "Krstulovic, Alex"]
[Result "1-0"]
[ECO "C79"]
[WhiteElo "2519"]
[BlackElo "2345"]
[Annotator "ChessBase"]
[PlyCount "69"]
[EventDate "2019.04.09"]
[EventType "swiss"]
[EventCountry "HUN"]
[SourceTitle "playchess.com"]
[Source "ChessBase"]
[SourceQuality "1"]
[TimeControl "40/5400+30:1800+30"]

1. e4 {[%emt 0:00:23]} e5 {[%emt 0:00:11]} 2. Nf3 {[%emt 0:00:07]} Nc6 {[%emt 0:00:06]} 3. Bb5 {[%emt 0:00:20]} a6 {[%emt 0:00:06]} 4. Ba4 {[%emt 0:00:03]} Nf6 {[%emt 0:00:25]} 5. O-O {[%emt 0:00:11]} d6 {[%emt 0:00:13]} 6. d4 {[%emt 0:01:18]} Bd7 {[%emt 0:00:35]} 7. Re1 {[%emt 0:07:49]} b5 {[%emt 0:08:06]} 8. dxe5 {[%emt 0:00:40]} Nxe5 {[%emt 0:04:54]} 9. Nxe5 {[%emt 0:09:19]} dxe5 {[%emt 0:02:29]} 10. Bb3 {[%emt 0:01:15]} Bg4 {[%emt 0:06:22]} 11. Qxd8+ {[%emt 0:00:55]} Rxd8 {[%emt 0:00:07]} 12. Bg5 {[%emt 0:09:53]} h6 {[%emt 0:12:59]} 13. Be3 {[%emt 0:12:59]} Bc8 {[%emt 0:06:10]} 14. f3 {[%emt 0:03:54]} Nd7 {[%emt 0:03:26]} 15. Rd1 {[%emt 0:03:47]} Bd6 {[%emt 0:02:37]} 16. Nc3 {[%emt 0:10:23]} Nc5 {[%emt 0:06:19]} 17. Bd5 {[%emt 0:00:06]} Bd7 {[%emt 0:01:39]} 18. Rd2 b4 {[%emt 0:07:39]} 19. Ne2 {[%emt 0:02:53]} Na4 {[%emt 0:01:46]} 20. b3 {[%emt 0:12:42]} Bc5 {[%emt 0:00:19]} 21. Bxc5 {[%emt 0:00:53]} Nxc5 {[%emt 0:00:08]} 22. c3 {[%emt 0:00:10]} bxc3 {[%emt 0:01:28]} 23. Nxc3 {[%emt 0:00:01]} c6 {[%emt 0:06:35]} 24. Bc4 {[%emt 0:00:46]} a5 {[%emt 0:01:18]} 25. Rc1 {[%emt 0:03:59]} Ke7 {[%emt 0:02:45]} 26. Nb1 {[%emt 0:00:57]} Bc8 {[%emt 0:02:06]} 27. Bf1 {[%emt 0:03:14]} Ne6 {[%emt 0:03:47]} 28. Rxc6 {[%emt 0:00:15]} Rxd2 {[%emt 0:00:13]} 29. Nxd2 {[%emt 0:00:01]} Bd7 {[%emt 0:00:54]} 30. Ra6 {[%emt 0:00:25]} a4 {[%emt 0:00:04]} 31. bxa4 {[%emt 0:00:55]} Rb8 {[%emt 0:00:44]} 32. Ra7 {[%emt 0:00:35]} Nd4 {[%emt 0:00:44]} 33. Nb3 {[%emt 0:08:47]} Kd6 {[%emt 0:01:14]} 34. Nxd4 {[%emt 0:00:32]} exd4 {[%emt 0:00:02]} 35. e5+ {[%emt 0:00:02]} 1-0